[Event "*** Titled Tuesday Blitz"]
[Site "Chess.com"]
[Date "2020.11.10"]
[Round "4"]
[White "queen_iryna"]
[Black "sboshaon21"]
[Result "1-0"]
[WhiteElo "2272"]
[BlackElo "2060"]
[TimeControl "180+1"]
[EndTime "10:43:25 PST"]
[Termination "queen_iryna won by resignation"]

1. e4 {[%clk 0:03:00.9]} 1... e5 {[%clk 0:02:58.1]} 2. Nf3 {[%clk 0:03:00.9]}
2... Nc6 {[%clk 0:02:58.5]} 3. d3 {[%clk 0:03:01.4]} 3... Nf6 {[%clk 0:02:56.3]}
4. Be2 {[%clk 0:03:01.5]} 4... Bc5 {[%clk 0:02:55.2]} 5. O-O {[%clk 0:03:01.4]}
5... O-O {[%clk 0:02:54.7]} 6. Nbd2 {[%clk 0:03:01.6]} 6... h6 {[%clk
0:02:53.9]} 7. c3 {[%clk 0:03:01.9]} 7... d6 {[%clk 0:02:53.4]} 8. b4 {[%clk
0:03:01.6]} 8... Bb6 {[%clk 0:02:52.9]} 9. Bb2 {[%clk 0:03:01.2]} 9... Re8
{[%clk 0:02:46.6]} 10. h3 {[%clk 0:03:01]} 10... Ne7 {[%clk 0:02:38.9]} 11. Re1
{[%clk 0:03:00.4]} 11... Ng6 {[%clk 0:02:39.2]} 12. Bf1 {[%clk 0:02:56]} 12...
Nf4 {[%clk 0:02:34.3]} 13. Nc4 {[%clk 0:02:55.9]} 13... Be6 {[%clk 0:02:25]} 14.
Nxb6 {[%clk 0:02:47.6]} 14... axb6 {[%clk 0:02:24]} 15. d4 {[%clk 0:02:39.9]}
15... Bd7 {[%clk 0:02:16.2]} 16. Qd2 {[%clk 0:02:23.8]} 16... b5 {[%clk
0:02:15.4]} 17. a3 {[%clk 0:02:13.6]} 17... Bc6 {[%clk 0:02:11.7]} 18. d5 {[%clk
0:02:02.9]} 18... Bd7 {[%clk 0:02:11.3]} 19. c4 {[%clk 0:02:00.5]} 19... bxc4
{[%clk 0:02:07.2]} 20. Bxc4 {[%clk 0:02:01.4]} 20... N6h5 {[%clk 0:01:59.1]} 21.
Bf1 {[%clk 0:01:54.2]} 21... Qf6 {[%clk 0:01:57.2]} 22. Qe3 {[%clk 0:01:45.8]}
22... Qg6 {[%clk 0:01:46.5]} 23. Kh1 {[%clk 0:01:41.2]} 23... f5 {[%clk
0:01:14.1]} 24. Nh4 {[%clk 0:01:24.8]} 24... Qg5 {[%clk 0:01:12.1]} 25. Nxf5
{[%clk 0:01:20.9]} 25... Bxf5 {[%clk 0:01:11.4]} 26. exf5 {[%clk 0:01:21.8]}
26... Nf6 {[%clk 0:00:41.5]} 27. g3 {[%clk 0:00:55.4]} 27... N4xd5 {[%clk
0:00:23]} 28. Qb3 {[%clk 0:00:54.8]} 28... Kh8 {[%clk 0:00:20.2]} 29. Bg2 {[%clk
0:00:53.4]} 29... Ne7 {[%clk 0:00:18.9]} 30. g4 {[%clk 0:00:53.6]} 30... c6
{[%clk 0:00:16.7]} 31. Rad1 {[%clk 0:00:52.7]} 31... Ned5 {[%clk 0:00:17.1]} 32.
Qg3 {[%clk 0:00:41.3]} 32... Nf4 {[%clk 0:00:15.5]} 33. Rxd6 {[%clk 0:00:36.1]}
33... h5 {[%clk 0:00:15.7]} 34. Rxe5 {[%clk 0:00:30.8]} 34... hxg4 {[%clk
0:00:14.2]} 35. h4 {[%clk 0:00:27.8]} 35... Qh6 {[%clk 0:00:12.5]} 36. Rxe8+
{[%clk 0:00:18.4]} 36... Rxe8 {[%clk 0:00:11.6]} 37. Bxf6 {[%clk 0:00:18.3]}
37... gxf6 {[%clk 0:00:10.5]} 38. Kh2 {[%clk 0:00:15.9]} 38... Nxg2 {[%clk
0:00:10.1]} 39. Kxg2 {[%clk 0:00:15.6]} 39... Kg7 {[%clk 0:00:08.1]} 40. Rd7+
{[%clk 0:00:14.5]} 40... Kh8 {[%clk 0:00:08.6]} 41. Qc3 {[%clk 0:00:14]} 41...
Qxh4 {[%clk 0:00:05]} 42. Rxb7 {[%clk 0:00:12.5]} 42... Qh3+ {[%clk 0:00:04.4]}
43. Qxh3+ {[%clk 0:00:12.3]} 43... gxh3+ {[%clk 0:00:05.3]} 44. Kxh3 {[%clk
0:00:13.2]} 44... Re5 {[%clk 0:00:05.4]} 45. Rc7 {[%clk 0:00:12.4]} 45... Rxf5
{[%clk 0:00:05.4]} 46. Rxc6 {[%clk 0:00:12.6]} 46... Rf3+ {[%clk 0:00:05.8]} 47.
Kg2 {[%clk 0:00:12.7]} 47... Rxa3 {[%clk 0:00:06.1]} 48. Rxf6 {[%clk 0:00:12.3]}
48... Kg7 {[%clk 0:00:06.6]} 49. Rb6 {[%clk 0:00:12.1]} 49... Rb3 {[%clk
0:00:07.2]} 50. b5 {[%clk 0:00:12.4]} 50... Kf7 {[%clk 0:00:07.5]} 51. Rb8
{[%clk 0:00:11.9]} 51... Ke7 {[%clk 0:00:07.2]} 52. b6 {[%clk 0:00:12.2]} 52...
Kd7 {[%clk 0:00:07.4]} 53. f3 {[%clk 0:00:09.4]} 53... Kc6 {[%clk 0:00:06.9]}
54. Kg3 {[%clk 0:00:09.3]} 54... Rxb6 {[%clk 0:00:03.9]} 55. Rxb6+ {[%clk
0:00:09]} 55... Kxb6 {[%clk 0:00:04.8]} 56. Kg4 {[%clk 0:00:09.1]} 56... Kc7
{[%clk 0:00:05.4]} 57. Kg5 {[%clk 0:00:09.4]} 57... Kd7 {[%clk 0:00:05.6]} 58.
Kg6 {[%clk 0:00:09.5]} 58... Ke6 {[%clk 0:00:04.9]} 59. f4 {[%clk 0:00:09.7]}
59... Ke7 {[%clk 0:00:04.6]} 60. f5 {[%clk 0:00:09.5]} 60... Kf8 {[%clk
0:00:04.2]} 61. Kf6 {[%clk 0:00:09.5]} 1-0

[Event "*** Titled Tuesday Blitz"]
[Site "Chess.com"]
[Date "2020.11.10"]
[Round "4"]
[White "TST2014"]
[Black "MariaFominykh"]
[Result "0-1"]
[WhiteElo "2496"]
[BlackElo "2354"]
[TimeControl "180+1"]
[EndTime "10:43:29 PST"]
[Termination "MariaFominykh won by resignation"]

1. d4 {[%clk 0:03:00.9]} 1... d6 {[%clk 0:02:59.5]} 2. Nf3 {[%clk 0:03:00]} 2...
Nf6 {[%clk 0:02:58.5]} 3. c4 {[%clk 0:02:59.3]} 3... g6 {[%clk 0:02:58.4]} 4.
Nc3 {[%clk 0:02:59.1]} 4... Bg7 {[%clk 0:02:58.9]} 5. e4 {[%clk 0:02:59.1]} 5...
O-O {[%clk 0:02:59.5]} 6. Be2 {[%clk 0:02:59.6]} 6... e5 {[%clk 0:02:59.6]} 7.
O-O {[%clk 0:02:59.7]} 7... Nc6 {[%clk 0:02:59.6]} 8. d5 {[%clk 0:03:00.2]} 8...
Ne7 {[%clk 0:02:59.4]} 9. b4 {[%clk 0:03:00.4]} 9... a5 {[%clk 0:02:57.7]} 10.
bxa5 {[%clk 0:02:59.1]} 10... Nh5 {[%clk 0:02:56.8]} 11. g3 {[%clk 0:02:55.6]}
11... f5 {[%clk 0:02:41.9]} 12. Ng5 {[%clk 0:02:54.7]} 12... Nf6 {[%clk
0:02:40.5]} 13. f3 {[%clk 0:02:47.2]} 13... Rxa5 {[%clk 0:02:18.8]} 14. a4
{[%clk 0:02:42.8]} 14... h6 {[%clk 0:02:11]} 15. Ne6 {[%clk 0:02:41.3]} 15...
Bxe6 {[%clk 0:02:10.6]} 16. dxe6 {[%clk 0:02:42.2]} 16... Qc8 {[%clk 0:02:10.6]}
17. Nd5 {[%clk 0:02:38.2]} 17... Qxe6 {[%clk 0:01:59.9]} 18. Nxc7 {[%clk
0:02:37.3]} 18... Qd7 {[%clk 0:01:59.1]} 19. Nb5 {[%clk 0:02:34.5]} 19... fxe4
{[%clk 0:01:56.8]} 20. fxe4 {[%clk 0:02:28.4]} 20... Nxe4 {[%clk 0:01:52]} 21.
Rxf8+ {[%clk 0:02:25]} 21... Bxf8 {[%clk 0:01:45]} 22. Qd3 {[%clk 0:02:19.8]}
22... Qf5 {[%clk 0:01:41.3]} 23. Be3 {[%clk 0:02:08]} 23... Nc5 {[%clk
0:01:38.4]} 24. Qd2 {[%clk 0:01:48]} 24... Nb3 {[%clk 0:01:33.9]} 25. Qc3 {[%clk
0:01:38.5]} 25... Nxa1 {[%clk 0:01:29.3]} 26. Qxa5 {[%clk 0:01:38.6]} 26... Qe4
{[%clk 0:01:19.1]} 27. Qd2 {[%clk 0:01:11.5]} 27... Nf5 {[%clk 0:01:18.3]} 28.
Bf2 {[%clk 0:01:05.7]} 28... Nb3 {[%clk 0:01:16.3]} 29. Qd5+ {[%clk 0:01:04.7]}
29... Qxd5 {[%clk 0:01:15.8]} 30. cxd5 {[%clk 0:01:05.6]} 30... e4 {[%clk
0:01:03.5]} 31. Bb6 {[%clk 0:01:02.3]} 31... Kf7 {[%clk 0:01:01.3]} 32. g4
{[%clk 0:00:56.3]} 32... Nh4 {[%clk 0:00:54.5]} 33. Kf2 {[%clk 0:00:54.5]} 33...
Nc1 {[%clk 0:00:34.8]} 34. Bc4 {[%clk 0:00:48.8]} 34... Nf3 {[%clk 0:00:34]} 35.
Be3 {[%clk 0:00:42.2]} 35... Ne5 {[%clk 0:00:30.4]} 36. Bxc1 {[%clk 0:00:23.8]}
36... Nxc4 {[%clk 0:00:30.1]} 37. Nc3 {[%clk 0:00:19.7]} 37... Nb6 {[%clk
0:00:28.2]} 38. a5 {[%clk 0:00:18.9]} 38... Nc4 {[%clk 0:00:27.1]} 39. Nxe4
{[%clk 0:00:18.4]} 39... Nxa5 {[%clk 0:00:26.7]} 40. Ke3 {[%clk 0:00:17.3]}
40... Ke7 {[%clk 0:00:24]} 41. Kd3 {[%clk 0:00:16.5]} 41... b5 {[%clk
0:00:23.9]} 42. Kc3 {[%clk 0:00:15.9]} 42... Nc4 {[%clk 0:00:23.9]} 43. Kb4
{[%clk 0:00:15.1]} 43... Ne5 {[%clk 0:00:19.8]} 44. h3 {[%clk 0:00:13.8]} 44...
Nd3+ {[%clk 0:00:19.6]} 45. Kxb5 {[%clk 0:00:14.4]} 45... Nxc1 {[%clk
0:00:20.5]} 46. Kc6 {[%clk 0:00:14.9]} 46... Kf7 {[%clk 0:00:16.7]} 47. Nxd6+
{[%clk 0:00:14.2]} 47... Bxd6 {[%clk 0:00:16.4]} 48. Kxd6 {[%clk 0:00:15.1]}
48... Ke8 {[%clk 0:00:16.3]} 49. Ke6 {[%clk 0:00:15]} 49... Ne2 {[%clk
0:00:16.3]} 50. d6 {[%clk 0:00:14.2]} 50... Nf4+ {[%clk 0:00:15.7]} 51. Kf6
{[%clk 0:00:14.6]} 51... g5 {[%clk 0:00:15.4]} 52. Kg7 {[%clk 0:00:13.9]} 52...
Nxh3 {[%clk 0:00:14.7]} 53. Kxh6 {[%clk 0:00:14.3]} 53... Kd7 {[%clk 0:00:14.9]}
54. Kg6 {[%clk 0:00:14.1]} 54... Kxd6 {[%clk 0:00:15.5]} 55. Kf6 {[%clk
0:00:14.5]} 55... Kd5 {[%clk 0:00:15.4]} 56. Kf5 {[%clk 0:00:15.1]} 56... Kd4
{[%clk 0:00:15.6]} 57. Kg6 {[%clk 0:00:14.2]} 57... Ke3 {[%clk 0:00:16.2]} 58.
Kh6 {[%clk 0:00:14.7]} 58... Kf3 {[%clk 0:00:16.8]} 59. Kh5 {[%clk 0:00:15.3]}
59... Kg3 {[%clk 0:00:16.9]} 60. Kg6 {[%clk 0:00:07.2]} 60... Kxg4 {[%clk
0:00:17.8]} 61. Kf6 {[%clk 0:00:07.3]} 61... Kf4 {[%clk 0:00:17.8]} 62. Ke6
{[%clk 0:00:07.3]} 62... g4 {[%clk 0:00:18.7]} 63. Kd5 {[%clk 0:00:08.2]} 63...
g3 {[%clk 0:00:19.5]} 64. Kd4 {[%clk 0:00:09.1]} 64... g2 {[%clk 0:00:20.3]} 65.
Kd3 {[%clk 0:00:10]} 65... g1=Q {[%clk 0:00:20.6]} 66. Ke2 {[%clk 0:00:10.9]}
66... Qe3+ {[%clk 0:00:20.3]} 67. Kd1 {[%clk 0:00:11.1]} 67... Qf2 {[%clk
0:00:20.1]} 68. Kc1 {[%clk 0:00:11.4]} 68... Ke3 {[%clk 0:00:20.8]} 69. Kb1
{[%clk 0:00:11.9]} 69... Kd3 {[%clk 0:00:21.4]} 70. Ka1 {[%clk 0:00:12.3]} 70...
Kc3 {[%clk 0:00:21.4]} 0-1

[Event "*** Titled Tuesday Blitz"]
[Site "Chess.com"]
[Date "2020.11.10"]
[Round "4"]
[White "GMKrikor"]
[Black "Triumphmate"]
[Result "0-1"]
[WhiteElo "2781"]
[BlackElo "2383"]
[TimeControl "180+1"]
[EndTime "10:43:35 PST"]
[Termination "Triumphmate won by resignation"]

1. e4 {[%clk 0:03:00.9]} 1... d5 {[%clk 0:02:56.1]} 2. exd5 {[%clk 0:03:00.1]}
2... Nf6 {[%clk 0:02:56.3]} 3. d4 {[%clk 0:02:59.8]} 3... Bg4 {[%clk 0:02:56.1]}
4. Be2 {[%clk 0:02:59.5]} 4... Bxe2 {[%clk 0:02:53]} 5. Qxe2 {[%clk 0:03:00.4]}
5... Qxd5 {[%clk 0:02:53.5]} 6. Nf3 {[%clk 0:03:00.8]} 6... Nc6 {[%clk
0:02:53.8]} 7. c4 {[%clk 0:02:59.7]} 7... Qd7 {[%clk 0:02:53.2]} 8. d5 {[%clk
0:02:58.3]} 8... Nb4 {[%clk 0:02:49.8]} 9. a3 {[%clk 0:02:55.3]} 9... Na6 {[%clk
0:02:49]} 10. O-O {[%clk 0:02:55.9]} 10... g6 {[%clk 0:02:47.4]} 11. Ne5 {[%clk
0:02:25.3]} 11... Qd8 {[%clk 0:02:33.9]} 12. Nc3 {[%clk 0:02:07.1]} 12... Bg7
{[%clk 0:02:32]} 13. Rd1 {[%clk 0:02:02.7]} 13... O-O {[%clk 0:02:29.1]} 14. Be3
{[%clk 0:02:02.7]} 14... Nb8 {[%clk 0:02:20.4]} 15. Rac1 {[%clk 0:01:59.1]}
15... Nbd7 {[%clk 0:02:18.1]} 16. f4 {[%clk 0:01:52.2]} 16... Re8 {[%clk
0:02:11.5]} 17. Qf3 {[%clk 0:01:49.4]} 17... Qc8 {[%clk 0:02:03.3]} 18. Bd4
{[%clk 0:01:41.2]} 18... e6 {[%clk 0:01:58.5]} 19. h3 {[%clk 0:01:26.3]} 19...
exd5 {[%clk 0:01:52.8]} 20. Nxd5 {[%clk 0:01:26.5]} 20... Nxd5 {[%clk
0:01:51.9]} 21. cxd5 {[%clk 0:01:21.1]} 21... Nxe5 {[%clk 0:01:41.9]} 22. fxe5
{[%clk 0:01:22]} 22... Bxe5 {[%clk 0:01:41.2]} 23. Bxe5 {[%clk 0:01:22.9]} 23...
Rxe5 {[%clk 0:01:40.6]} 24. d6 {[%clk 0:01:23.8]} 24... c6 {[%clk 0:01:36.3]}
25. d7 {[%clk 0:01:20.3]} 25... Qf8 {[%clk 0:01:30.5]} 26. Qf6 {[%clk
0:01:10.6]} 26... Re7 {[%clk 0:01:30.2]} 27. Rd6 {[%clk 0:00:45.7]} 27... Rd8
{[%clk 0:01:30]} 28. Rcd1 {[%clk 0:00:45.2]} 28... Re4 {[%clk 0:01:13.7]} 29.
Qf3 {[%clk 0:00:29.4]} 29... Qe7 {[%clk 0:01:11.6]} 30. Qf2 {[%clk 0:00:22.5]}
30... Re2 {[%clk 0:00:53]} 31. Qg3 {[%clk 0:00:22.2]} 31... h5 {[%clk
0:00:46.9]} 32. b4 {[%clk 0:00:15.8]} 32... Qe4 {[%clk 0:00:39.5]} 33. b5 {[%clk
0:00:13.5]} 33... h4 {[%clk 0:00:38.5]} 34. Qg5 {[%clk 0:00:09.6]} 34... Kg7
{[%clk 0:00:20.5]} 35. bxc6 {[%clk 0:00:07.6]} 35... bxc6 {[%clk 0:00:20]} 36.
R6d4 {[%clk 0:00:06.6]} 36... Re1+ {[%clk 0:00:19.9]} 37. Rxe1 {[%clk
0:00:04.5]} 37... Qxe1+ {[%clk 0:00:20.8]} 38. Kh2 {[%clk 0:00:05.1]} 38... Qg3+
{[%clk 0:00:20]} 39. Qxg3 {[%clk 0:00:05.4]} 39... hxg3+ {[%clk 0:00:20.9]} 40.
Kxg3 {[%clk 0:00:06.3]} 40... Kf6 {[%clk 0:00:21.8]} 41. Rd6+ {[%clk 0:00:06.8]}
41... Ke7 {[%clk 0:00:21.9]} 42. Rxc6 {[%clk 0:00:07.7]} 42... Rxd7 {[%clk
0:00:22.8]} 43. Ra6 {[%clk 0:00:08.6]} 43... Rb7 {[%clk 0:00:22.7]} 44. a4
{[%clk 0:00:07.5]} 44... Kf8 {[%clk 0:00:22.7]} 45. h4 {[%clk 0:00:06.7]} 45...
Kg7 {[%clk 0:00:23]} 46. Kh3 {[%clk 0:00:07.3]} 46... Rb3+ {[%clk 0:00:20.8]}
47. g3 {[%clk 0:00:07.2]} 47... Rb7 {[%clk 0:00:21.7]} 48. Kg4 {[%clk
0:00:07.3]} 48... Kh6 {[%clk 0:00:22.6]} 49. Kf4 {[%clk 0:00:05.4]} 49... Rb4+
{[%clk 0:00:22.7]} 50. Ke5 {[%clk 0:00:05.4]} 50... Rb7 {[%clk 0:00:22.5]} 51.
Kd6 {[%clk 0:00:05.3]} 51... f5 {[%clk 0:00:22.1]} 52. Ke5 {[%clk 0:00:04.6]}
52... Kh5 {[%clk 0:00:21.4]} 53. Kf4 {[%clk 0:00:05.1]} 53... Rb4+ {[%clk
0:00:21.2]} 54. Kf3 {[%clk 0:00:05.7]} 54... Rb3+ {[%clk 0:00:21.6]} 55. Kf2
{[%clk 0:00:06.4]} 55... Rb2+ {[%clk 0:00:21.8]} 56. Ke3 {[%clk 0:00:06.7]}
56... Rb3+ {[%clk 0:00:22]} 57. Kf4 {[%clk 0:00:06.1]} 57... Rb4+ {[%clk
0:00:21]} 58. Ke5 {[%clk 0:00:06.7]} 58... Rb7 {[%clk 0:00:19.3]} 59. a5 {[%clk
0:00:07.3]} 59... Re7+ {[%clk 0:00:18.3]} 60. Kd5 {[%clk 0:00:03.3]} 60... Rb7
{[%clk 0:00:19.2]} 61. Kc5 {[%clk 0:00:03.3]} 61... Re7 {[%clk 0:00:19.1]} 62.
Kd5 {[%clk 0:00:02.9]} 62... Rd7+ {[%clk 0:00:19]} 63. Rd6 {[%clk 0:00:02.3]}
63... Rxd6+ {[%clk 0:00:17.1]} 64. Kxd6 {[%clk 0:00:03.2]} 64... Kg4 {[%clk
0:00:18]} 65. Kc6 {[%clk 0:00:03.5]} 65... Kxg3 {[%clk 0:00:18.3]} 66. a6 {[%clk
0:00:04]} 66... f4 {[%clk 0:00:19.2]} 67. Kb7 {[%clk 0:00:04.6]} 67... f3 {[%clk
0:00:19.5]} 68. Kxa7 {[%clk 0:00:05.5]} 68... f2 {[%clk 0:00:20.4]} 69. Kb7
{[%clk 0:00:06.3]} 69... f1=Q {[%clk 0:00:21.3]} 70. a7 {[%clk 0:00:07.2]} 70...
Qf3+ {[%clk 0:00:22.1]} 71. Kb8 {[%clk 0:00:08.1]} 71... Kxh4 {[%clk 0:00:22.6]}
0-1

[Event "*** Titled Tuesday Blitz"]
[Site "Chess.com"]
[Date "2020.11.10"]
[Round "4"]
[White "Anaj14"]
[Black "shnitez"]
[Result "0-1"]
[WhiteElo "2338"]
[BlackElo "2522"]
[TimeControl "180+1"]
[EndTime "10:43:37 PST"]
[Termination "shnitez won on time"]

1. e4 {[%clk 0:03:00.9]} 1... c5 {[%clk 0:02:59]} 2. Nf3 {[%clk 0:03:00.5]} 2...
e6 {[%clk 0:02:58.7]} 3. d3 {[%clk 0:02:59.4]} 3... Nc6 {[%clk 0:02:57.4]} 4.
Nbd2 {[%clk 0:02:59.5]} 4... Nf6 {[%clk 0:02:56.8]} 5. g3 {[%clk 0:02:59.8]}
5... g6 {[%clk 0:02:54.5]} 6. Bg2 {[%clk 0:03:00.2]} 6... Bg7 {[%clk 0:02:55.1]}
7. O-O {[%clk 0:03:00.8]} 7... O-O {[%clk 0:02:55.5]} 8. c3 {[%clk 0:03:00.6]}
8... b5 {[%clk 0:02:52.2]} 9. Re1 {[%clk 0:03:00.1]} 9... d6 {[%clk 0:02:51.9]}
10. d4 {[%clk 0:02:57.7]} 10... Bb7 {[%clk 0:02:44.2]} 11. Nb3 {[%clk
0:02:48.5]} 11... Na5 {[%clk 0:02:14.7]} 12. dxc5 {[%clk 0:02:39.2]} 12... Nxb3
{[%clk 0:02:14]} 13. Qxb3 {[%clk 0:02:39.2]} 13... Nxe4 {[%clk 0:01:55]} 14.
Qxb5 {[%clk 0:02:34.3]} 14... Nxc5 {[%clk 0:01:50.2]} 15. Be3 {[%clk 0:02:25]}
15... Ba6 {[%clk 0:01:39.8]} 16. Qb4 {[%clk 0:02:16.6]} 16... Nd3 {[%clk
0:01:38.5]} 17. Qa3 {[%clk 0:02:11.5]} 17... Nxe1 {[%clk 0:01:33.4]} 18. Rxe1
{[%clk 0:02:12.4]} 18... Bb7 {[%clk 0:01:30]} 19. Rd1 {[%clk 0:02:09.3]} 19...
Bd5 {[%clk 0:01:24.7]} 20. c4 {[%clk 0:02:01.7]} 20... Bxc4 {[%clk 0:01:24]} 21.
Rxd6 {[%clk 0:02:01.3]} 21... Qb8 {[%clk 0:01:18.3]} 22. Nd2 {[%clk 0:01:47.4]}
22... Bxb2 {[%clk 0:01:12.3]} 23. Qc5 {[%clk 0:01:44.7]} 23... Rc8 {[%clk
0:00:55]} 24. Rc6 {[%clk 0:01:38.4]} 24... Bd5 {[%clk 0:00:49.2]} 25. Bxd5
{[%clk 0:01:30.8]} 25... exd5 {[%clk 0:00:50.1]} 26. Qxd5 {[%clk 0:01:23.5]}
26... Rxc6 {[%clk 0:00:49.3]} 27. Qxc6 {[%clk 0:01:24.1]} 27... Bg7 {[%clk
0:00:44.8]} 28. h4 {[%clk 0:01:22.8]} 28... Qc8 {[%clk 0:00:39.6]} 29. Qd5
{[%clk 0:01:22.8]} 29... a5 {[%clk 0:00:37.9]} 30. a4 {[%clk 0:01:19.5]} 30...
Qa6 {[%clk 0:00:35.2]} 31. h5 {[%clk 0:01:18.7]} 31... Rc8 {[%clk 0:00:33.5]}
32. h6 {[%clk 0:01:18.1]} 32... Bf8 {[%clk 0:00:25.1]} 33. Ne4 {[%clk
0:01:14.8]} 33... Be7 {[%clk 0:00:22.1]} 34. Bg5 {[%clk 0:01:10.2]} 34... Qe6
{[%clk 0:00:19.1]} 35. Qxe6 {[%clk 0:01:06.3]} 35... fxe6 {[%clk 0:00:20]} 36.
Bxe7 {[%clk 0:01:06.2]} 36... Rc4 {[%clk 0:00:18.8]} 37. Ng5 {[%clk 0:00:39.3]}
37... Rxa4 {[%clk 0:00:18]} 38. Bf6 {[%clk 0:00:39.1]} 38... Ra2 {[%clk
0:00:14.6]} 39. Bg7 {[%clk 0:00:36.9]} 39... a4 {[%clk 0:00:12.7]} 40. Nxe6
{[%clk 0:00:37.3]} 40... Re2 {[%clk 0:00:11.2]} 41. Nd4 {[%clk 0:00:33.3]} 41...
Re1+ {[%clk 0:00:10.5]} 42. Kg2 {[%clk 0:00:33.4]} 42... a3 {[%clk 0:00:11.4]}
43. Kf3 {[%clk 0:00:32.5]} 43... a2 {[%clk 0:00:11.1]} 44. Nc2 {[%clk
0:00:32.7]} 44... Rc1 {[%clk 0:00:10]} 45. Na1 {[%clk 0:00:33]} 45... Kf7 {[%clk
0:00:09.8]} 46. Ke2 {[%clk 0:00:32.8]} 46... Ke6 {[%clk 0:00:09.2]} 47. Kd2
{[%clk 0:00:32]} 47... Rf1 {[%clk 0:00:09.3]} 48. Ke2 {[%clk 0:00:32.4]} 48...
Rb1 {[%clk 0:00:09.2]} 49. Bd4 {[%clk 0:00:32.7]} 49... Kf5 {[%clk 0:00:09.7]}
50. f3 {[%clk 0:00:32.1]} 50... Kg5 {[%clk 0:00:09.4]} 51. Bg7 {[%clk
0:00:31.8]} 51... Kh5 {[%clk 0:00:08.4]} 52. Ke3 {[%clk 0:00:30.5]} 52... Kg5
{[%clk 0:00:08.7]} 53. Kd2 {[%clk 0:00:29.8]} 53... Kf5 {[%clk 0:00:08.7]} 54.
Kc2 {[%clk 0:00:29.2]} 54... Rf1 {[%clk 0:00:08.5]} 55. Nb3 {[%clk 0:00:27.3]}
55... Ke6 {[%clk 0:00:06.3]} 56. g4 {[%clk 0:00:26.8]} 56... Kd5 {[%clk
0:00:06]} 57. g5 {[%clk 0:00:27.2]} 57... Rxf3 {[%clk 0:00:05.8]} 58. Nd2 {[%clk
0:00:26.1]} 58... Rf2 {[%clk 0:00:05.4]} 59. Bc3 {[%clk 0:00:24]} 59... Rg2
{[%clk 0:00:05.7]} 60. Bf6 {[%clk 0:00:22.9]} 60... Ke6 {[%clk 0:00:03.9]} 61.
Bc3 {[%clk 0:00:20.5]} 61... Kf5 {[%clk 0:00:04.8]} 62. Kb3 {[%clk 0:00:19.8]}
62... Rxg5 {[%clk 0:00:04.5]} 63. Kxa2 {[%clk 0:00:19.1]} 63... Rh5 {[%clk
0:00:04.6]} 64. Bg7 {[%clk 0:00:19.7]} 64... Rh2 {[%clk 0:00:04.1]} 65. Kb3
{[%clk 0:00:20]} 65... Rxd2 {[%clk 0:00:03.9]} 66. Kc3 {[%clk 0:00:19.7]} 66...
Rd7 {[%clk 0:00:04.4]} 67. Kc4 {[%clk 0:00:19.1]} 67... g5 {[%clk 0:00:05.3]}
68. Kc5 {[%clk 0:00:19.6]} 68... g4 {[%clk 0:00:06.2]} 69. Kc6 {[%clk
0:00:20.5]} 69... Rd1 {[%clk 0:00:06.4]} 0-1